bitfinex/quotes_SOLUSD_20220226
["timestamp","ask_amount","ask_price","bid_price","bid_amount"]
[1645886619095,4.333,91.387,91.302,57.03877871]
[1645886619395,4.333,91.387,91.302,59.78556792]
[1645886620098,4.333,91.387,91.302,57.03877871]
[1645886620294,23.2305,91.388,91.303,2.74678921]
[1645886620496,16.432,91.38,91.303,5.03875447]
[1645886621294,16.432,91.38,91.303,2.74678921]
[1645886621496,16.432,91.38,91.302,57.03877871]
[1645886621895,67.34599716,91.379,91.302,57.03877871]
[1645886622094,16.434,91.37,91.302,57.03877871]
[1645886622294,33.15253712,91.369,91.302,57.03877871]
[1645886622498,23.7329,91.368,91.302,57.03877871]
[1645886627499,23.7329,91.368,91.303,2.74678921]
[1645886627699,23.7329,91.368,91.303,5.65382587]
[1645886627901,23.7329,91.368,91.303,2.74678921]
[1645886628699,23.7329,91.368,91.302,57.03877871]
[1645886633003,23.7329,91.368,91.303,2.74678921]
[1645886635705,23.7329,91.368,91.31,16.4291]
[1645886635904,23.7329,91.368,91.311,2.42406855]
[1645886636103,23.7329,91.368,91.31,19.17588921]
[1645886636503,23.7329,91.368,91.312,2.74678921]
[1645886638606,23.7329,91.368,91.32,16.4275]
[1645886638804,23.7329,91.368,91.312,2.74678921]
[1645886639006,23.7329,91.368,91.321,2.74678921]
[1645886639606,47.08043112,91.367,91.321,2.74678921]
[1645886640009,23.7329,91.368,91.321,2.74678921]
[1645886640606,16.429,91.39,91.321,2.74678921]
[1645886641007,53.46711392,91.389,91.321,2.74678921]
[1645886641409,24.3997,91.388,91.321,2.74678921]
[1645886642613,16.4308,91.38,91.321,2.74678921]
[1645886642816,1.35320413,91.379,91.306,2.74678921]
[1645886643214,65.9,91.385,91.306,2.74678921]
[1645886643417,5.9205192,91.384,91.306,2.74678921]
[1645886644435,16.4328,91.37,91.306,2.74678921]
[1645886644638,23.6874,91.369,91.306,2.74678921]
[1645886645338,175.9,91.367,91.291,2.74678921]
[1645886645538,65.9,91.365,91.285,24.967]
[1645886645741,1.50075661,91.364,91.285,24.967]
[1645886646142,1.50075661,91.364,91.286,57.67266631]
[1645886646641,1.50075661,91.364,91.286,60.41945552]
[1645886648547,1.50075661,91.364,91.286,57.67266631]
[1645886649545,4.363,91.368,91.287,2.74678921]
[1645886649745,23.6874,91.369,91.287,28.53023208]
[1645886649945,23.6874,91.369,91.288,49.01384287]
[1645886650146,23.6874,91.369,91.288,51.76063208]
[1645886650346,23.6874,91.369,91.289,28.53023208]
[1645886650547,23.6874,91.369,91.29,15.47692246]
[1645886650746,23.6874,91.369,91.29,57.56949692]
[1645886650946,23.6874,91.369,91.291,5.18409005]
[1645886651150,23.6874,91.369,91.291,44.5298753]
[1645886651348,23.6874,91.369,91.292,44.42244825]
[1645886651548,23.6874,91.369,91.31,16.4294]
[1645886654348,23.6874,91.369,91.293,16.30913159]
[1645886654551,1.46845602,91.368,91.293,16.30913159]
[1645886654749,1.46845602,91.368,91.294,2.74678921]
[1645886659254,4.333,91.367,91.294,2.74678921]
[1645886659456,67.36845602,91.368,91.294,2.74678921]
[1645886660153,1.49950824,91.367,91.279,13.56234238]
[1645886660353,110.0,91.365,91.279,13.56234238]
[1645886660654,65.9,91.356,91.278,2.74678921]
[1645886660852,65.9,91.349,91.278,2.74678921]
[1645886661056,16.4378,91.35,91.278,2.74678921]
[1645886661057,65.9,91.347,91.278,2.74678921]
[1645886661256,1.64858809,91.346,91.278,2.74678921]
[1645886661655,1.64858809,91.346,91.266,13.56234238]
[1645886661656,70.169,91.345,91.266,13.56234238]
[1645886661855,1.43305474,91.344,91.266,13.56234238]
[1645886662255,4.238,91.343,91.266,13.56234238]
[1645886662457,175.9,91.339,91.266,44.38432474]
[1645886662667,175.9,91.337,91.266,44.38432474]
[1645886662854,175.9,91.335,91.266,44.38432474]
[1645886663057,65.9,91.333,91.266,44.38432474]
[1645886663257,1.62135728,91.332,91.262,4.38]
[1645886663454,16.4437,91.32,91.262,4.38]
[1645886663654,65.9,91.317,91.268,63.21084447]
[1645886663857,65.9,91.317,91.21,13.14]
[1645886663858,110.0,91.308,91.21,13.14]
[1645886664060,65.9,91.301,91.198,2.81098946]
[1645886664255,65.9,91.295,91.192,25.60517585]
[1645886664456,1.5127446,91.294,91.199,57.51708835]
[1645886664656,16.4497,91.28,91.199,57.51708835]
[1645886664862,4.383,91.299,91.2,2.47568339]
[1645886665055,23.1572,91.3,91.2,29.52929467]
[1645886665254,23.1572,91.3,91.201,19.01793555]
[1645886665454,23.1572,91.3,91.202,3.10264221]
[1645886665655,23.1572,91.3,91.204,110.0]
[1645886665957,23.1572,91.3,91.221,52.22966021]
[1645886666155,1.86834369,91.298,91.221,52.22966021]
[1645886666354,70.283,91.299,91.221,52.22966021]
[1645886666555,65.9,91.299,91.221,52.22966021]
[1645886667157,16.4471,91.29,91.221,52.22966021]
[1645886667359,110.0,91.288,91.221,52.22966021]
[1645886667559,1.68600915,91.284,91.221,52.22966021]
[1645886667959,23.7193,91.287,91.221,52.22966021]
[1645886668559,65.9,91.286,91.221,52.22966021]
[1645886668759,1.54263491,91.285,91.221,52.22966021]
[1645886669560,67.26580833,91.279,91.221,52.22966021]
[1645886669759,16.4493,91.28,91.221,52.22966021]
[1645886672962,23.7193,91.287,91.221,52.22966021]
[1645886673162,23.7193,91.287,91.221,59.46966021]
[1645886674165,23.7193,91.287,91.221,52.22966021]
[1645886675967,23.7193,91.287,91.222,2.51963754]
[1645886676368,23.7193,91.287,91.221,52.22966021]
[1645886678596,175.9,91.279,91.191,23.4113]
[1645886678796,1.65394814,91.278,91.194,4.384]
[1645886679599,1.61055606,91.277,91.195,47.66459685]
[1645886679798,1.61055606,91.277,91.195,44.91780764]
[1645886679996,1.73170557,91.274,91.195,44.91780764]
[1645886680395,16.4524,91.27,91.195,44.91780764]
[1645886680595,67.57462083,91.269,91.195,44.91780764]
[1645886680795,65.9,91.259,91.181,2.74678921]
[1645886680997,110.0,91.246,91.162,4.385]
[1645886681198,88.944,91.245,91.162,4.385]
[1645886681396,88.944,91.245,91.161,4.385]
[1645886681795,88.944,91.245,91.162,59.25110363]
[1645886681995,16.4562,91.24,91.163,2.95440745]
[1645886682498,16.4562,91.24,91.164,27.608]
[1645886682897,23.044,91.245,91.165,2.81612596]
[1645886683095,23.044,91.245,91.166,4.385]
[1645886683295,24.4827,91.257,91.181,52.49225201]
[1645886683495,24.6577,91.284,91.183,2.66310764]
[1645886683696,24.6577,91.284,91.19,13.14]
[1645886683900,24.6577,91.284,91.191,6.82141399]
[1645886684099,24.6577,91.284,91.191,5.1842032]
[1645886684299,24.6577,91.284,91.191,25.98756752]
[1645886684499,65.9,91.281,91.202,55.47424149]
[1645886684702,110.0,91.276,91.202,55.47424149]
[1645886684900,65.9,91.265,91.202,55.47424149]
[1645886685102,65.9,91.263,91.202,55.47424149]
[1645886685300,65.9,91.253,91.167,22.7779]
[1645886685600,16.4574,91.24,91.167,22.7779]
[1645886685800,24.2725,91.239,91.167,22.7779]
[1645886686300,24.2725,91.239,91.168,51.50242555]
[1645886687901,24.2725,91.239,91.169,2.99852708]
[1645886688302,24.2725,91.239,91.17,2.74678921]
[1645886688506,24.2725,91.239,91.169,2.99852708]
[1645886689102,30.7325,91.239,91.169,2.99852708]
[1645886689307,65.9,91.229,91.168,51.50242555]
[1645886689702,65.9,91.227,91.168,51.50242555]
[1645886690104,65.9,91.225,91.168,51.50242555]
[1645886690404,65.9,91.215,91.136,4.386]
[1645886690602,65.9,91.215,91.14,16.4595]
[1645886691203,24.1183,91.214,91.14,16.4595]
[1645886691404,24.1183,91.214,91.145,52.72491288]
[1645886692404,24.1183,91.214,91.146,2.74678921]
[1645886692606,24.1183,91.214,91.147,4.386]
[1645886692805,16.4571,91.24,91.147,28.21958057]
[1645886693006,24.702,91.239,91.148,50.45130842]
[1645886693206,24.702,91.239,91.149,2.56568912]
[1645886693405,24.702,91.239,91.149,23.36905344]
[1645886693606,65.9,91.229,91.161,51.01523045]
[1645886693805,65.9,91.227,91.161,51.01523045]
[1645886694806,16.4609,91.22,91.161,51.01523045]
[1645886695007,24.702,91.228,91.161,51.01523045]
[1645886696810,24.702,91.228,91.162,5.81039381]
[1645886697011,24.809,91.25,91.163,110.0]
[1645886697213,24.809,91.25,91.17,13.14]
[1645886697411,24.809,91.25,91.171,4.385]
[1645886697613,24.809,91.25,91.171,28.92421773]
[1645886697911,24.809,91.25,91.181,51.43274336]
[1645886698117,24.809,91.25,91.182,6.77884518]
[1645886698312,24.809,91.25,91.182,9.52563439]
[1645886698512,24.809,91.25,91.183,2.74678921]
[1645886698713,24.809,91.25,91.184,4.385]
[1645886699315,24.809,91.25,91.19,16.4504]
[1645886699516,24.809,91.25,91.182,2.39384518]
[1645886699715,24.809,91.25,91.181,49.08519632]
[1645886699914,23.7916,91.249,91.181,49.08519632]
[1645886701517,23.7916,91.249,91.17,16.4543]
[1645886701715,16.4565,91.24,91.17,16.4543]
[1645886702616,16.4565,91.24,91.171,49.25945868]
[1645886704117,65.9,91.239,91.166,4.385]
[1645886704324,65.9,91.217,91.141,2.74678921]
[1645886704517,65.9,91.207,91.132,24.7149]
[1645886704919,65.9,91.207,91.13,113.0]
[1645886705117,1.57692399,91.206,91.131,46.76273548]
[1645886705320,65.9,91.204,91.131,46.76273548]
[1645886705518,65.9,91.196,91.131,46.76273548]
[1645886705719,16.4662,91.19,91.131,46.76273548]
[1645886707223,16.4662,91.19,91.111,28.1865]
[1645886707420,16.4662,91.19,91.111,23.8005]
[1645886707624,1.748467,91.188,91.105,4.388]
[1645886707820,1.748467,91.188,91.091,2.61681511]
[1645886708020,1.79438161,91.185,91.092,24.999]
[1645886708222,1.79438161,91.185,91.104,55.28505309]
[1645886708622,65.9,91.178,91.104,55.28505309]
[1645886708921,65.9,91.186,91.104,55.28505309]
[1645886709121,65.9,91.186,91.105,4.388]
[1645886709721,1.74044463,91.185,91.104,55.28505309]
[1645886710723,65.9,91.176,91.104,55.28505309]
[1645886710923,65.9,91.166,91.104,55.28505309]
[1645886711122,70.214,91.174,91.104,55.28505309]
[1645886711520,65.9,91.174,91.104,55.28505309]
[1645886712122,4.238,91.173,91.104,55.28505309]
[1645886712521,65.9,91.172,91.104,55.28505309]
[1645886712725,1.54482255,91.171,91.104,55.28505309]
[1645886712921,16.4722,91.16,91.104,55.28505309]
[1645886713120,65.9,91.159,91.077,2.43337414]
[1645886713324,65.9,91.151,91.051,113.0]
[1645886713526,1.81350373,91.15,91.053,4.39]
[1645886713723,1.81350373,91.15,91.053,7.04916981]
[1645886713922,65.9,91.151,91.053,7.04916981]
[1645886714123,65.9,91.151,91.054,50.89470118]
[1645886714322,70.29,91.157,91.055,26.30763924]
[1645886714523,16.4733,91.15,91.06,16.4742]
[1645886714823,16.4733,91.15,91.061,2.6164988]
[1645886715023,65.9,91.149,91.061,2.6164988]
[1645886715223,65.9,91.149,91.056,3.12269261]
[1645886715623,65.9,91.147,91.056,3.12269261]
[1645886716327,4.39,91.157,91.056,3.12269261]
[1645886716525,65.9,91.228,91.061,110.0]
[1645886716725,65.9,91.228,91.115,110.0]
[1645886716926,65.9,91.228,91.121,110.0]
[1645886717127,65.9,91.228,91.122,3.01891248]
[1645886717325,1.4353402,91.227,91.122,20.33531736]
[1645886717529,16.4615,91.22,91.122,20.33531736]
[1645886717724,4.333,91.228,91.116,47.2518944]
[1645886717725,110.0,91.216,91.116,47.2518944]
[1645886717925,65.9,91.211,91.116,47.2518944]
[1645886718126,1.83640572,91.21,91.116,47.2518944]
[1645886718326,4.342,91.209,91.116,47.2518944]
[1645886718526,70.242,91.209,91.116,47.2518944]
[1645886718726,1.70101013,91.208,91.116,47.2518944]
[1645886718935,65.9,91.199,91.102,2.74678921]
[1645886719129,65.9,91.197,91.102,2.74678921]
[1645886719330,1.70324189,91.194,91.102,2.74678921]
[1645886719630,65.9,91.191,91.102,2.74678921]
[1645886719829,4.388,91.19,91.102,2.74678921]
[1645886720029,4.388,91.19,91.103,57.66125248]
[1645886720430,16.4679,91.19,91.104,5.82494217]
[1645886720831,16.4679,91.19,91.105,2.74678921]
[1645886721443,4.388,91.189,91.105,2.74678921]
[1645886723235,114.388,91.189,91.105,2.74678921]
[1645886723437,1.85050502,91.188,91.103,57.66125248]
[1645886723638,4.362,91.187,91.099,46.1901]
[1645886723839,4.362,91.187,91.083,2.74678921]
[1645886724040,4.362,91.187,91.064,2.74678921]
[1645886724238,1.78752692,91.184,91.064,2.74678921]
[1645886724539,4.337,91.183,91.064,2.74678921]
[1645886724738,1.78752692,91.184,91.065,44.69337672]
[1645886724939,1.78752692,91.184,91.066,2.27959854]
[1645886725139,4.288,91.183,91.066,115.02638775]
[1645886725341,1.72544471,91.184,91.07,13.14]
[1645886725740,65.9,91.185,91.071,31.21889575]
[1645886726039,65.9,91.185,91.072,19.0471062]
[1645886726241,4.239,91.184,91.073,26.22092079]
[1645886726461,4.239,91.184,91.09,16.4699]
[1645886726659,4.239,91.184,91.092,51.7535998]
[1645886727059,1.68381172,91.182,91.092,51.7535998]
[1645886727259,4.214,91.181,91.093,2.74678921]
[1645886727459,4.214,91.181,91.12,16.4645]
[1645886727661,23.5303,91.186,91.12,7.7]
[1645886727860,23.5303,91.186,91.121,53.82044353]
[1645886728361,23.5303,91.186,91.122,2.93028185]
[1645886728560,23.5303,91.186,91.13,16.4627]
[1645886728762,16.4645,91.21,91.13,16.4627]
[1645886729561,24.6266,91.197,91.13,16.4627]
[1645886730865,24.6266,91.197,91.131,2.95656631]
[1645886731265,16.4612,91.23,91.132,2.74678921]
[1645886731467,24.1386,91.234,91.141,110.0]
[1645886731670,24.1386,91.234,91.143,110.0]
[1645886731867,24.1386,91.234,91.144,2.58617254]
[1645886732065,24.1386,91.234,91.144,5.33296175]
[1645886732267,24.1386,91.234,91.144,2.58617254]
[1645886732467,24.1386,91.234,91.17,16.4551]
[1645886732668,24.1386,91.234,91.171,50.44954128]
[1645886733271,24.1386,91.234,91.171,56.99954128]
[1645886734669,24.1386,91.234,91.171,50.44954128]
[1645886738978,24.1386,91.234,91.18,16.4534]
[1645886739378,22.775,91.248,91.18,16.4534]
[1645886740376,22.775,91.248,91.173,23.3522]
[1645886740578,22.775,91.248,91.174,2.45948709]
[1645886740977,22.775,91.248,91.175,4.385]
[1645886741182,22.775,91.248,91.174,2.45948709]
[1645886741880,22.775,91.248,91.18,16.4535]
[1645886742078,22.775,91.248,91.181,2.80235606]
[1645886742481,22.775,91.248,91.182,4.385]
[1645886742882,22.775,91.248,91.181,2.80235606]
[1645886743282,23.5675,91.247,91.182,4.385]
[1645886743482,23.5675,91.247,91.191,49.73785529]
[1645886745309,24.3658,91.269,91.192,2.72925099]
[1645886745509,24.3658,91.269,91.192,27.64045099]
[1645886747110,16.4543,91.26,91.192,27.64045099]
[1645886752017,16.4543,91.26,91.192,2.72925099]
[1645886752217,16.4543,91.26,91.182,4.385]
[1645886752416,24.8643,91.26,91.182,4.385]
[1645886753219,177.28309218,91.259,91.182,4.385]
[1645886753417,16.4593,91.24,91.172,22.9569]
[1645886753618,23.4926,91.239,91.172,22.9569]
[1645886754219,23.4926,91.239,91.173,46.49480821]
[1645886754417,23.4926,91.239,91.173,49.35906705]
[1645886754621,23.4926,91.239,91.174,2.3833838]
[1645886754818,23.4926,91.239,91.174,5.13017301]
[1645886755324,33.85971432,91.311,91.18,16.4535]
[1645886755518,1.3961727,91.343,91.182,3.02625371]
[1645886755720,1.3961727,91.343,91.191,110.0]
[1645886755920,1.3961727,91.343,91.213,5.0]
[1645886756122,1.3961727,91.343,91.217,175.9]
[1645886756320,1.3961727,91.343,91.24,164.28]
[1645886756520,1.3961727,91.343,91.251,110.0]
[1645886756721,1.3961727,91.343,91.255,110.0]
[1645886756919,1.3961727,91.343,91.256,2.79977759]
[1645886757122,1.3961727,91.343,91.27,13.14]
[1645886757421,1.3961727,91.343,91.271,50.0834719]
[1645886757620,1.3961727,91.343,91.272,2.30978174]
[1645886761825,1.3961727,91.343,91.273,4.38]
[1645886762227,1.3961727,91.343,91.281,2.71499605]
[1645886765434,1.3961727,91.343,91.281,2.28603644]
[1645886765631,1.3961727,91.343,91.281,3.03243968]
[1645886765832,1.3961727,91.343,91.281,2.43193615]
[1645886766031,1.3961727,91.343,91.28,13.14]
[1645886770842,65.9,91.339,91.273,3.03511695]
[1645886771141,65.9,91.337,91.272,4.378]
[1645886771562,1.59968387,91.336,91.22,13.14]
[1645886771764,114.4997,91.335,91.239,50.72068307]
[1645886771965,16.4453,91.32,91.24,2.70462889]
[1645886772163,24.8628,91.319,91.24,2.70462889]
[1645886772364,24.8628,91.319,91.231,2.95608319]
[1645886772567,24.8628,91.319,91.233,2.89665674]
[1645886773668,16.4447,91.31,91.233,2.89665674]
[1645886779673,16.4447,91.31,91.234,4.382]
[1645886780274,54.807,91.35,91.234,10.042]
[1645886780484,54.92,91.393,91.234,10.042]
[1645886780485,22.6436,91.349,91.241,112.71240111]
[1645886780676,24.1,91.393,91.242,2.28830388]
[1645886780874,65.9,91.391,91.244,110.0]
[1645886781076,65.9,91.391,91.245,2.30759761]
[1645886781280,65.9,91.391,91.261,110.0]
[1645886781474,65.9,91.391,91.28,16.4318]
[1645886781475,16.4339,91.38,91.28,16.4318]
[1645886781675,16.4339,91.38,91.29,13.14]
[1645886782076,16.4339,91.38,91.291,7.05690158]
[1645886782377,23.1264,91.379,91.291,7.05690158]
[1645886784279,65.9,91.369,91.291,2.67690158]
[1645886784476,65.9,91.369,91.291,2.59603136]
[1645886784676,65.9,91.367,91.271,4.38]
[1645886784880,65.9,91.367,91.27,13.14]
[1645886785080,65.9,91.367,91.271,60.91605214]
[1645886785479,65.9,91.359,91.272,2.72148774]
[1645886786285,65.9,91.357,91.272,2.72148774]
[1645886786483,16.4386,91.35,91.272,2.72148774]
[1645886786682,65.9,91.357,91.272,2.72148774]
[1645886786883,65.9,91.355,91.271,2.72063326]
[1645886787084,65.9,91.355,91.27,13.14]
[1645886787587,65.9,91.355,91.271,60.21520946]
[1645886787785,65.9,91.355,91.272,2.42081442]
[1645886788085,16.4401,91.34,91.27,13.14]
[1645886788286,65.9,91.338,91.27,13.14]
[1645886790119,65.9,91.338,91.266,2.38151688]
[1645886791892,23.3824,91.339,91.27,16.4374]
[1645886792090,23.3824,91.339,91.27,29.5774]
[1645886792292,23.3824,91.339,91.271,3.01831328]
[1645886793590,16.4385,91.35,91.271,3.01831328]
[1645886793791,48.2206,91.392,91.281,60.03044948]
[1645886793991,48.2206,91.392,91.29,13.14]
[1645886794593,16.4326,91.39,91.291,5.09713832]
[1645886795091,16.4326,91.39,91.292,2.74678921]
[1645886795293,16.4326,91.39,91.293,110.0]
[1645886795491,16.4326,91.39,91.3,16.4304]
[1645886795693,16.4326,91.39,91.301,53.39088111]
[1645886795892,16.4326,91.39,91.302,2.72140914]
[1645886799293,16.4329,91.38,91.302,2.72140914]
[1645886799494,22.8171,91.379,91.302,2.72140914]
[1645886801896,16.4347,91.37,91.302,2.72140914]
[1645886802098,16.4347,91.37,91.301,2.63443484]
[1645886802295,16.4347,91.37,91.301,2.99139476]
[1645886802497,16.4347,91.37,91.3,13.14]
[1645886802897,22.8171,91.379,91.3,13.14]
[1645886804001,22.8171,91.379,91.296,2.68639186]
[1645886804002,16.4384,91.35,91.297,2.91982199]
[1645886804200,16.4384,91.35,91.284,2.55899891]
[1645886804401,6.8861727,91.343,91.268,2.74678921]
[1645886804604,6.8861727,91.343,91.27,13.14]
[1645886804800,6.8861727,91.343,91.271,51.63626215]
[1645886805006,6.8861727,91.343,91.272,2.61608914]
[1645886805219,5.49,91.343,91.272,2.61608914]
[1645886805422,24.5162,91.349,91.272,2.61608914]
[1645886805824,24.95633864,91.348,91.263,2.39126579]
[1645886806022,16.44,91.34,91.263,2.39126579]
[1645886806219,16.44,91.34,91.264,52.19360862]
[1645886806420,16.44,91.34,91.265,2.40294482]
[1645886806720,65.9,91.339,91.265,2.40294482]
[1645886806920,65.9,91.337,91.249,4.38]
[1645886807322,65.9,91.337,91.24,13.14]
[1645886807923,65.9,91.337,91.24,15.8439889]
[1645886808322,65.9,91.329,91.24,15.8439889]
[1645886808925,65.9,91.329,91.241,2.46055531]
[1645886809124,65.9,91.329,91.242,4.381]
[1645886809726,16.4429,91.33,91.242,4.381]
[1645886809928,23.0479,91.338,91.25,16.4409]
[1645886810126,23.0479,91.338,91.251,2.90100861]
[1645886810327,23.0479,91.338,91.251,5.64779782]
[1645886810831,23.0479,91.338,91.253,60.63537204]
[1645886811027,23.0479,91.338,91.26,16.4385]
[1645886811229,23.0479,91.338,91.261,2.95738322]
[1645886811928,23.0479,91.338,91.253,60.63537204]
[1645886812129,23.0479,91.338,91.254,2.75335855]
[1645886815634,23.0479,91.338,91.26,16.4388]
[1645886815833,23.0479,91.338,91.261,110.0]
[1645886816136,23.0479,91.338,91.262,2.5385586]
[1645886816334,23.0479,91.338,91.263,4.381]
[1645886817534,23.0479,91.338,91.28,16.4357]
[1645886817736,23.0479,91.338,91.281,55.04607035]
[1645886817933,23.0479,91.338,91.281,52.22880097]
[1645886818134,23.0479,91.338,91.282,2.27271888]
[1645886820336,16.4372,91.36,91.282,2.27271888]
[1645886820536,22.5082,91.356,91.282,2.27271888]
[1645886820937,22.5082,91.356,91.283,4.38]
[1645886822540,22.5082,91.356,91.282,2.27271888]
[1645886824140,16.4378,91.35,91.282,2.27271888]
[1645886824540,65.9,91.349,91.261,4.38]
[1645886825141,65.9,91.347,91.261,4.38]
[1645886825340,65.9,91.347,91.257,2.52385634]
[1645886825542,16.4423,91.33,91.257,2.52385634]
[1645886825743,23.3517,91.329,91.257,2.52385634]
[1645886831878,16.4432,91.32,91.257,2.52385634]
[1645886832980,16.4432,91.32,91.245,4.381]
[1645886833480,16.446,91.31,91.245,4.381]
[1645886833781,24.714,91.309,91.245,4.381]
[1645886834183,24.714,91.309,91.247,3.10891788]
[1645886837881,24.714,91.309,91.25,13.14]
[1645886838483,24.714,91.309,91.25,29.5806]
[1645886838983,24.714,91.309,91.251,3.0231922]
[1645886839183,24.2446,91.328,91.251,113.0231922]
[1645886839383,23.4425,91.342,91.252,2.53162381]
[1645886840583,23.4425,91.342,91.261,2.34723836]
[1645886840786,23.4425,91.342,91.262,23.6485]
[1645886840984,24.0926,91.361,91.263,112.38018711]
[1645886841285,48.0475,91.361,91.264,3.05894152]
[1645886841583,72.41428038,91.361,91.264,3.05894152]
[1645886842385,65.9,91.36,91.264,3.05894152]
[1645886842582,16.4383,91.35,91.264,3.05894152]
[1645886842782,65.9,91.348,91.264,3.05894152]
[1645886843384,90.26678038,91.348,91.264,3.05894152]
[1645886843983,200.26678038,91.348,91.264,3.05894152]
[1645886844184,90.26678038,91.348,91.264,3.05894152]
[1645886844584,16.4394,91.34,91.264,3.05894152]
[1645886846586,24.855,91.349,91.264,3.05894152]
[1645886847590,24.855,91.349,91.262,23.6485]
[1645886847591,24.855,91.349,91.271,2.66174738]
[1645886847989,24.855,91.349,91.27,13.14]
[1645886849589,24.855,91.349,91.281,57.6465636]
[1645886849990,24.855,91.349,91.282,2.46414085]
[1645886850197,24.855,91.349,91.173,5.0]
[1645886850396,65.9,91.339,91.21,2.37225728]
[1645886850593,175.9,91.337,91.212,24.6237]
[1645886850797,1.38998984,91.336,91.189,24.3859]
[1645886850995,0.91,91.331,91.189,24.3859]
[1645886851196,175.9,91.319,91.168,24.6237]
[1645886851393,175.9,91.279,91.168,24.6237]
[1645886851595,1.64582932,91.276,91.168,24.6237]
[1645886851796,1.64582932,91.276,91.169,2.5146537]
[1645886851994,1.64582932,91.276,91.17,13.14]
[1645886852196,1.87414604,91.274,91.171,55.31883718]
[1645886852595,1.87414604,91.274,91.172,110.0]
[1645886853599,16.4519,91.27,91.181,110.0]
[1645886853800,16.4519,91.27,91.19,13.14]
[1645886853996,16.4519,91.27,91.191,51.30106875]
[1645886855502,48.1053,91.278,91.192,110.0]
[1645886855700,27.58038038,91.304,91.193,2.83559618]
[1645886855900,115.1293,91.329,91.193,2.83559618]
[1645886856101,2.74678921,91.319,91.196,2.89089755]
[1645886856301,2.74678921,91.319,91.21,13.14]
[1645886856500,2.74678921,91.319,91.211,45.63618764]
[1645886857502,16.4455,91.3,91.22,16.4451]
[1645886857906,16.4455,91.3,91.22,29.5851]
[1645886858302,16.4455,91.3,91.22,16.4451]
[1645886860909,1.57901574,91.299,91.22,16.4451]
[1645886861508,16.4455,91.3,91.22,16.4451]
[1645886862812,1.4225287,91.299,91.22,16.4451]
[1645886863013,16.4455,91.3,91.22,16.4451]
[1645886868140,1.778542,91.299,91.22,16.4451]
[1645886868438,16.4455,91.3,91.22,16.4451]
[1645886868640,1.84477162,91.299,91.211,45.63618764]
[1645886868838,72.6298734,91.299,91.211,45.63618764]
[1645886869040,16.4481,91.29,91.211,45.63618764]
[1645886869240,1.8347717,91.289,91.211,45.63618764]
[1645886869839,1.61043955,91.297,91.211,45.63618764]
[1645886870440,16.4488,91.28,91.211,45.63618764]
[1645886870644,16.4488,91.28,91.19,13.14]
[1645886870843,1.73704029,91.279,91.18,13.14]
[1645886871243,1.58054898,91.277,91.18,13.14]
[1645886871643,1.58054898,91.277,91.184,58.02082848]
[1645886872444,16.4522,91.27,91.184,58.02082848]
[1645886872652,1.78264432,91.269,91.184,58.02082848]
[1645886874650,1.78264432,91.269,91.185,110.0]
[1645886874847,1.78264432,91.269,91.19,16.4509]
[1645886881857,1.28264432,91.269,91.19,16.4509]
[1645886886964,16.4522,91.27,91.19,16.4509]
[1645886887164,16.4522,91.27,91.19,29.5909]
[1645886887764,16.4522,91.27,91.167,110.0]
[1645886887765,175.9,91.269,91.154,2.34078359]
[1645886887964,175.9,91.239,91.129,24.0936]
[1645886888164,1.44520934,91.236,91.129,24.0936]
[1645886888566,2.74678921,91.235,91.129,24.0936]
[1645886888763,2.74678921,91.235,91.13,48.28812925]
[1645886889464,16.461,91.22,91.13,64.74802925]
[1645886889666,24.3338,91.219,91.13,64.74802925]
[1645886895995,1.60153773,91.209,91.13,64.74802925]
[1645886896195,23.8521,91.208,91.13,64.74802925]
[1645886904203,23.8521,91.208,91.14,16.4591]